Cogmind - Beta 13 @@@ ROGUE MODE // 2024.03.30 @ 21:43:59 Player: gabr Result: Destroyed by G-47 Trooper with Particle Gun Performance ------------- Evolutions (2) 1000 Regions Visited (3) 600 Robots Destroyed (35) 175 Value Destroyed (597) 597 Prototype IDs (3) 60 Alien Tech Used (0) 0 Bonus (0) 0 TOTAL SCORE: 2432 Bonus ------- None Cogmind --------- Core Integrity 0/550 Matter 26/300 Energy 99/100 System Corruption 0% Temperature Cool (75) Movement Core (50) Location -8/Materials Parts ------- > --- POWER (1) -------- (None) > --- PROPULSION (6) --- (None) > --- UTILITY (2) ------ Advanced Weight Redist. System > --- WEAPON (2) ------- (None) > --- INVENTORY (5) ---- Deuterium Engine Deuterium Engine Deuterium Engine Advanced Targeting Computer Reaction Control System Peak State ------------ > --- POWER ------------ Improved Ion Engine > --- PROPULSION ------- Compact Wheel Compact Wheel Compact Wheel Compact Wheel Improved VTOL Module Improved VTOL Module > --- UTILITY ---------- Advanced Weight Redist. System ECM Suite > --- WEAPON ----------- Beam Rifle Flak Cannon > --- INVENTORY -------- Light Ion Engine Aluminum Leg Medium Storage Unit Large Matter Pod Flak Cannon [Rating: 23] Favorites ----------- Power Light Ion Engine Engine Light Ion Engine Power Core Light Nuclear Core Propulsion Aluminum Leg Treads Advanced Treads Leg Aluminum Leg Wheel Compact Wheel Flight Unit Flight Unit Utility Large Storage Unit Device ECM Suite Storage Large Storage Unit Processor Improved Terrain Scan Processor Hackware Authchip [Device] Weapon Flak Cannon Energy Gun EM Pulse Gun Energy Cannon Light EM Pulse Cannon Ballistic Gun Light Assault Rifle Ballistic Cannon Flak Cannon Build | -11 -10 -9 -8 ------- Run | Yrd Mat Mat Mat Slots Evolved 4 | . . 2 2 Power . | . . . . Propulsion 4 | . . 2 2 Utility . | . . . . Weapon . | . . . . Parts Attached 61 | 6 13 7 35 Power 9 | 1 . . 8 Engine 8 | 1 . . 7 Core 1 | . . . 1 Reactor . | . . . . Propulsion 26 | 2 2 4 18 Treads 1 | . . . 1 Leg 4 | 2 2 . . Wheel 16 | . . 4 12 Hover . | . . . . Flight 5 | . . . 5 Utility 10 | 1 6 1 2 Device 2 | . . . 2 Storage 6 | 1 5 . . Processor 1 | . . 1 . Hackware 1 | . 1 . . Protection . | . . . . Artifact . | . . . . Weapon 16 | 2 5 2 7 Energy Gun 7 | 1 3 . 3 Energy Cannon 1 | . . . 1 Ballistic Gun 4 | 1 2 . 1 Ballistic Cannon 4 | . . 2 2 Launcher . | . . . . Special Weapon . | . . . . Impact Weapon . | . . . . Slashing Weapon . | . . . . Piercing Weapon . | . . . . Special Melee Weapon . | . . . . Unidentified Prototypes 1 | . . . 1 Corrupted Parts 2 | . 2 . . System Corruption 4 | . 4 . . Parts Lost 18 | . 1 . 17 Power 1 | . . . 1 Propulsion 10 | . . . 10 Utility 1 | . . . 1 Weapon 6 | . 1 . 5 Highest Loss Streak 11 | . 1 . 11 To Critical Strikes . | . . . . Average Slot Usage (%) 84 | . 93 80 78 Engine 7 | . 12 . 5 Leg 11 | . 27 8 . Wheel 16 | . . 28 26 Flight 4 | . . . 8 Device 5 | . . . 11 Storage 13 | . 25 11 4 Processor 1 | . . 9 1 Hackware 1 | . 2 1 . Energy Gun 10 | . 20 . 5 Ballistic Gun 1 | . 4 1 . Ballistic Cannon 7 | . . 20 9 Naked Turns . | . . . . Heaviest Build 47 | 11 47 32 36 Greatest Support 84 | 20 20 46 84 Greatest Overweight (x) 8 | . 2 3 8 Average Overweight (x) . | . 1 . . Largest Inventory Capacity 15 | 8 15 15 15 Average Capacity 11 | 6 14 15 9 Most Carried 15 | 6 15 15 15 Average Carried 11 | 3 13 14 9 Final Capacity 15 | 8 15 15 5 Final Carried 14 | 6 14 14 5 Class Distribution -------------------- 95% | Mutant 4% | Scavenger-Mutant Dominant Class ---------------- Mutant | -10/Materials Mutant | -9/Materials Mutant | -8/Materials Resources | -11 -10 -9 -8 ----------- Run | Yrd Mat Mat Mat Matter Collected 1123 | 216 243 37 627 Remotely . | . . . . Salvage Created 1156 | . 257 138 761 Parts 64 | . 18 6 40 Haulers Intercepted 6 | . 1 1 4 Recyclers Shooed 3 | . 2 . 1 Parts Field Recycled . | . . . . Retrieved Matter . | . . . . Parts Self-Destructed . | . . . . Prevented . | . . . . Kills | -11 -10 -9 -8 ------- Run | Yrd Mat Mat Mat Combat Hostiles Destroyed 14 | . 2 1 11 Guns 5 | . 2 . 3 Cannons 9 | . . 1 8 Classes Destroyed 10 | . 5 2 3 Worker 5 | . . . 5 Builder 1 | . 1 . . Hauler 6 | . 1 1 4 Recycler 7 | . 1 1 5 Operator 1 | . . 1 . Watcher 1 | . 1 . . Swarmer 4 | . . . 4 Grunt 7 | . 2 . 5 Sentry 2 | . . 1 1 Hunter 1 | . . . 1 Best Kill Streak 4 | . 3 2 4 Combat Bots Only 4 | . 2 1 4 Max Kills in Single Turn 2 | . 1 1 2 Gunslinging . | . . . . Exploded . | . . . . Melee . | . . . . Uniques/NPCs Destroyed . | . . . . Combat | -11 -10 -9 -8 -------- Run | Yrd Mat Mat Mat Hostile Shots Fired 209 | . 10 4 195 Missed 45 | . 2 . 43 Damage Taken 2298 | . 189 59 2050 Core 628 | . 56 14 558 Absorbed by Shields . | . . . . Core Remaining (%) 91 | 100 77 96 . Volleys Fired 97 | . 15 8 74 Largest 2 | . 2 2 2 Hottest 107 | . 80 88 107 Shots Fired 163 | . 23 16 124 Gun 76 | . 23 . 53 Cannon 87 | . . 16 71 Launcher . | . . . . Special . | . . . . Kinetic 96 | . . 16 80 Thermal 43 | . . . 43 Explosive . | . . . . Electromagnetic 24 | . 23 . 1 Robot Hit Streak 9 | . 7 9 8 Robot Miss Streak 9 | . 2 5 9 Penetration Max . | . . . . Secondary Targets . | . . . . Shots Hit Robots 127 | . 13 14 100 Core Hits 95 | . 10 11 74 Critical Kills . | . . . . Critical Parts Destroyed 1 | . . . 1 Critical Strikes 4 | . 1 . 3 Burn 2 | . . . 2 Destroy 1 | . . . 1 Corrupt 1 | . 1 . . Melee Attacks . | . . . . Impact . | . . . . Slashing . | . . . . Piercing . | . . . . Sneak Attacks . | . . . . Combat Hostiles . | . . . . Follow-up Attacks . | . . . . Damage Inflicted 2029 | . 277 203 1549 Guns 709 | . 175 . 534 Cannons 1212 | . . 203 1009 Explosions 102 | . 102 . . Melee . | . . . . Ramming 6 | . . . 6 Kinetic 1323 | . . 203 1120 Thermal 525 | . 102 . 423 Explosive . | . . . . Electromagnetic 175 | . 175 . . Impact . | . . . . Slashing . | . . . . Piercing . | . . . . Highest Corruption 4 | . 4 . . Average Corruption 3 | . 3 . . Corruption Purged . | . . . . Corruption Blocked . | . . . . Effects 4 | . 4 . . Message Errors 1 | . 1 . . Energy Discharges 2 | . 2 . . Data Loss (minor) 1 | . 1 . . Overload Shots . | . . . . Overflow Damage 4 | . . 4 . Projectiles 4 | . . 4 . Explosions . | . . . . Melee . | . . . . Knockbacks 35 | . . 4 31 Impact . | . . . . Kinetic 31 | . . 4 27 Secondary 4 | . . . 4 Self-Inflicted Damage 83 | . 80 . 3 Shots 2 | . 2 . . Rammed 1 | . . . 1 Targets Rammed 1 | . . . 1 Kicked . | . . . . Crushed . | . . . . Highest Temperature 526 | . 138 27 526 Average Temperature 107 | . 57 9 128 Received Heat Transfer 1026 | . 63 18 945 Effects 7 | . . . 7 Shutdowns 3 | . . . 3 Energy Bleed 1 | . . . 1 Interference 1 | . . . 1 Short Circuit 2 | . . . 2 Siege Activations . | . . . . Robots Corrupted . | . . . . Combat Hostiles . | . . . . Parts Fried 2 | . 2 . . Impact Corruptions . | . . . . Robots Melted . | . . . . Combat Hostiles . | . . . . Parts Melted 1 | . . . 1 Heat Transferred 1384 | . 200 . 1184 Parts Sabotaged . | . . . . Parts Stolen . | . . . . Parts Stripped . | . . . . Power Chain Reactions 2 | . 2 . . Alert | -11 -10 -9 -8 ------- Run | Yrd Mat Mat Mat Peak Influence 198 | . 87 100 198 Initial 42 | . . 7 42 Average 53 | . 27 40 82 Maximum Alert Level . | . . . . Low Security (%) 100 | 100 100 100 100 Level 1 . | . . . . Level 2 . | . . . . Level 3 . | . . . . Level 4 . | . . . . Level 5 . | . . . . High Security . | . . . . Max Security . | . . . . Squads Dispatched 3 | . . . 3 Investigation . | . . . . Extermination . | . . . . Reinforcement 2 | . . . 2 Assault . | . . . . Garrison 1 | . . . 1 Intercept . | . . . . Searches Triggered . | . . . . Construction Impeded . | . . . . Haulers Reinforced . | . . . . Active Scanning Responses . | . . . . Cargo Convoy Interrupts . | . . . . Stealth | -11 -10 -9 -8 --------- Run | Yrd Mat Mat Mat Distress Signals 3 | . 1 . 2 Communications Jammed . | . . . . Distress Signals . | . . . . Times Spotted 43 | . 4 2 37 Peak Tracking Total 7 | . 3 1 7 Tactical Retreats 3 | . 1 . 2 Traps | -11 -10 -9 -8 ------- Run | Yrd Mat Mat Mat Traps Triggered . | . . . . Indirectly . | . . . . Trap Hack Attempts . | . . . . Triggered . | . . . . Disarmed . | . . . . Reprogrammed . | . . . . Reused . | . . . . Traps Extracted . | . . . . Installed . | . . . . Triggered . | . . . . Machines | -11 -10 -9 -8 ---------- Run | Yrd Mat Mat Mat Machines Disabled . | . . . . Max in Single Turn . | . . . . Machines Repaired . | . . . . Machines Dismantled . | . . . . Machines Sabotaged . | . . . . Overloaded Fab Kills . | . . . . Hacking | -11 -10 -9 -8 --------- Run | Yrd Mat Mat Mat Machines Accessed 4 | . 2 2 . Terminals 3 | . 1 2 . Fabricators . | . . . . Repair Stations . | . . . . Recycling Units 1 | . 1 . . Scanalyzers . | . . . . Garrison Access . | . . . . Total Hacks 5 | . 2 3 . Successful 4 | . 2 2 . Failed 1 | . . 1 . Catastrophic 1 | . . 1 . Database Lockouts . | . . . . Manual . | . . . . Terminals 4 | . 1 3 . Fabricators . | . . . . Repair Stations . | . . . . Recycling Units 1 | . 1 . . Scanalyzers . | . . . . Garrison Access . | . . . . Terminal Hacks 3 | . 1 2 . Prototype ID Bank 1 | . 1 . . Maintenance Status 1 | . . 1 . Patrol Status 1 | . . 1 . Fabricator Hacks . | . . . . Repair Station Hacks . | . . . . Recycling Unit Hacks 1 | . 1 . . Retrieve Components 1 | . 1 . . Scanalyzer . | . . . . Garrison Access Hacks . | . . . . Unauthorized Hacks . | . . . . Terminals . | . . . . Fabricators . | . . . . Repair Stations . | . . . . Recycling Units . | . . . . Scanalyzers . | . . . . Garrison Access . | . . . . Data Cores Recovered 1 | . . 1 . Used 1 | . . 1 . Hacking Detections 1 | . . 1 . Full Trace Events 1 | . . 1 . Feedback Events . | . . . . Feedback Blocked . | . . . . Robot Schematics Acquired . | . . . . Robots Built . | . . . . Authchips . | . . . . Time . | . . . . Total Robot Build Rating . | . . . . Part Schematics Acquired . | . . . . Parts Built . | . . . . Authchips . | . . . . Time . | . . . . Total Part Build Rating . | . . . . Parts Repaired . | . . . . Time . | . . . . Parts Recycled . | . . . . Recycled Matter . | . . . . Retrieved Matter . | . . . . Retrieved Components 4 | . 4 . . Parts Scanalyzed . | . . . . Part Schematics Acquired . | . . . . Parts Damaged . | . . . . Bothacking | -11 -10 -9 -8 ------------ Run | Yrd Mat Mat Mat Used RIF Installer . | . . . . Robots Hacked . | . . . . Non-combat . | . . . . Combat . | . . . . Robot Hacks Applied . | . . . . Relay Couplers Released . | . . . . Fabnet Peak Effective % . | . . . . Robots Rewired . | . . . . Allies Hacked . | . . . . Hacks Repelled . | . . . . Allies | -11 -10 -9 -8 -------- Run | Yrd Mat Mat Mat Total Allies . | . . . . Largest Group . | . . . . Highest-Rated Group . | . . . . Highest-Rated Ally . | . . . . Total Orders . | . . . . Ally Attacks . | . . . . Total Damage . | . . . . Kills . | . . . . Allies Corrupted . | . . . . Allies Melted . | . . . . Intel | -11 -10 -9 -8 ------- Run | Yrd Mat Mat Mat Robot Analysis Total . | . . . . Derelict Logs Recovered . | . . . . Drone Launches . | . . . . Drone Recoveries . | . . . . Exploration | -11 -10 -9 -8 ------------- Run | Yrd Mat Mat Mat Turns Passed 2094 | 92 776 253 973 Spaces Moved 1082 | 65 302 190 525 Core 8 | 1 . . 7 Treads 28 | . . . 28 Legs 401 | 64 302 35 . Wheels 546 | . . 155 391 Hover . | . . . . Flight 99 | . . . 99 Fastest Speed 32 | 50 120 85 32 Average Speed 149 | 118 224 105 127 Slowest Speed 680 | 120 260 190 680 Overloaded Moves . | . . . . Propulsion Burnouts . | . . . . Robots Hopped . | . . . . Cave-ins Triggered . | . . . . Exploration Rate (%) 20 | 4 32 18 29 Regions Visited 3 Branch Regions . Pre-discovered Areas . | . . . . Known Exits Taken . | . . . . Unknown Exits Taken 3 | 1 1 1 . Scrap Searched . | . . . . Spaces Dug . | . . . . Terrain Destroyed 10 | . 10 . . Melee . | . . . . Projectile . | . . . . AOE 10 | . 10 . . Terrain Rammed . | . . . . Walls Destroyed . | . . . . Machines Disabled . | . . . . Actions | -11 -10 -9 -8 --------- Run | Yrd Mat Mat Mat Total 1400 | 76 378 228 718 Wait 81 | . 35 10 36 Move 1079 | 64 301 189 525 Hop . | . . . . Pick Up 29 | 6 7 4 12 Fast Attach 44 | 6 7 7 24 Attach 6 | . 2 . 4 Detach 8 | . 2 2 4 Swap 11 | . 4 . 7 Drop 44 | . 5 8 31 Fire 97 | . 15 8 74 Melee . | . . . . Ram 1 | . . . 1 Kick . | . . . . Crush . | . . . . Escape Stasis . | . . . . Rewire . | . . . . Trap . | . . . . Miscellaneous . | . . . . Route ------- -11/Scrapyard -10/Materials (discovered 2 exits: *Mat / [*Min]) -9/Materials -8/Materials History --------- Turn | Location | Event 6 | -11/Scrapyard | Discovered new exit (range 15) 93 | -11/Scrapyard | Entered Materials 307 | -10/Materials | Build established: Mutant 350 | -10/Materials | Discovered new exit (range 10) 466 | -10/Materials | Discovered new exit (range 16) 869 | -10/Materials | Entered another Materials area 869 | -9/Materials | Evolved 2 slots: Propulsion x2 1118 | -9/Materials | Discovered new exit (range 5) 1122 | -9/Materials | Entered another Materials area 1122 | -8/Materials | Evolved 2 slots: Propulsion x2 1378 | -8/Materials | Lost 3 parts (3n) 2043 | -8/Materials | Garrison activated, responded to threat 2075 | -8/Materials | Core integrity fell below 50% 2090 | -8/Materials | Core integrity fell below 20% 2095 | -8/Materials | Destroyed by G-47 Trooper with Particle Gun Last Messages --------------- 02065_ Field Laser destroyed. 02067_ K-01 Serf collects debris. 02072_ Acquired Autogun. 02072_ Broken ECM Suite destroyed. 02073_ Deuterium Engine destroyed. 02075_ G-47 Trooper destroyed. 02075_ Wheel destroyed. 02075_ K-01 Serf collects debris. 02079_ Arm. Wheel destroyed. 02080_ Com. Wheel destroyed. 02082_ G-47 Trooper suffers critical hit (Destroy). 02082_ Destroyed Aluminum Leg. 02084_ Com. Wheel destroyed. 02085_ K-01 Serf collects debris. 02085_ Arm. Wheel destroyed. 02089_ K-01 Serf collects debris. 02091_ Autogun destroyed. 02092_ K-01 Serf collects debris. 02093_ G-47 Trooper destroyed. 02094_ Slammed into S-10 Pest. Map ----- +----------------------------------------------------+ | ?????????????????????# #? | | ?????????????????????# #? | | ???????????????????### """ #? | | ???????????????????#"" """ ##? | | ???????????????????#"" """ #?? | | ???????????????????#"T #?? | | ???????????????????#"" #?? | | ???????????????????#"" """ #?? | | ???????????????????### """ #?? | | ??????????#/######## """ #?? | | ????????? #?? | | ????????? #?? | | ????????? # ##?? | | ??????????# ] # #??? | | ??????????T """ ##! !#??? | | ??????????# """"" ###!!!!##??? | | ??????????# """"" #?######???? | | ??????????# """"" #??????????? | | ??????????# """ #??????????? | | ??????????# #??????????? | | ??????????# ###########? | | ??????????# # *** #? | | ??????????# #=% * * #? | | ??????????###+#######l #k * * #? | | ????????????????????# # g #? | | ????????????????????# %%@sg #? | | ????????????????????# # s% k #? | | ????????????????????# # s #? | | ????????????????????# # #? | | ????????????????????# ###########? | | ????????????????????# #??????????? | | ????????????????????# #??????????? | | ????????????????????# #??????????? | | ????????????????????# #??????????? | | ????????????????????# #??????????? | | ????????????????????+ #??????????? | | ????????????????????# ???????????? | | ????????????????????# ???????????? | | ????????????????????# ???????????? | | ????????????????????? ???????????? | | ???????????????????????????????????? | | ???????????????????????????????????? | | ???????????????????????????????????? | | ???????????????????????????????????? | | ???????????????????????????????????? | | ???????????????????????????????????? | | ???????????????????????????????????? | | ???????????????????????????????????? | | ???????????????????????????????????? | | ???????????????????????????????????? | +----------------------------------------------------+ Best States ------------- Heat Dissipation 31 Energy Generation 14 Energy Capacity 275 Matter Stores 300 Matter Capacity 300 Sight Range 16 Terrain Scan Density 110 ECM Strength 1 Evasion (%) 55 Recoil Reduction 1 Authchip Count 1 Item Schematics ----------------- None Robot Schematics ------------------ None Fabricated ------------ Nothing Alien Tech Used ----------------- None Achievements -------------- None Challenges ------------ None Game ------ Seed ShadingSiegeRefractor Manual? 0 Play Time 00:17:38 Cumulative 29.6 hours Start 2024.03.30 @ 21:28:22 End 2024.03.30 @ 21:43:59 Sessions 1 Manual Loads 0 Difficulty Rogue Special Mode None Game No. 64 Rogue 64 Adventurer 0 Explorer 0 Win Type - Total 0 Types 0/0/0/0/0/0/0/0/0 Lore% 19 Gallery% 28 Achievement% 23 Wizard Run 0 Options --------- Layout 0 ASCII 0 Keyboard 1 Movement Numpad Keybinds 0 Fullscreen 1 Font 18/X11 Map View 76x50 Zoom Use 0% Tactical HUD 1 Map Filters NONE Filters NONE Steam 1 RUN: 280c5ef1-2d09-4ede-8673-4c5d493cf1b6